Cogmind - Beta 9.2 @@@ ROGUE MODE // 2019.11.12 @ 21:17:22 Player: fartblaster Result: Destroyed by G-47 Trooper with Particle Gun Performance ------------- Evolutions (1) 500 Regions Visited (2) 400 Robots Destroyed (43) 215 Value Destroyed (610) 610 Prototype IDs (0) 0 Alien Tech Used (0) 0 Bonus (11) 11 TOTAL SCORE: 1736 Bonus ------- High Alert Combat Kills 11 Cogmind --------- Core Integrity 0/400 Matter 169/300 Energy 102/140 System Corruption 3% Temperature Cool (715) Movement Treading (145) Location -9/Materials Parts ------- > --- POWER (1) -------- Light Deuterium Engine > --- PROPULSION (3) --- Advanced Treads Advanced Treads Advanced Treads > --- UTILITY (3) ------ Large Storage Unit Visual Processing Unit Power Shielding > --- WEAPON (2) ------- Grenade Launcher > --- INVENTORY (10) --- Light Deuterium Engine Light Deuterium Engine Advanced Treads Heat Sink Improved Heat Sink Peak State ------------ > --- POWER ------------ Light Deuterium Engine > --- PROPULSION ------- Advanced Treads Advanced Treads Advanced Treads > --- UTILITY ---------- Large Storage Unit Visual Processing Unit Terrain Scan Processor > --- WEAPON ----------- Heavy Particle Cannon Heavy Particle Cannon > --- INVENTORY -------- Light Deuterium Engine Light Deuterium Engine Advanced Treads Heat Sink Power Shielding Medium Laser Medium Laser Grenade Launcher [Rating: 24] Favorites ----------- Power Light Ion Engine Engine Light Ion Engine Propulsion Aluminum Leg Treads Advanced Treads Leg Aluminum Leg Utility Visual Processing Unit Storage Large Storage Unit Processor Visual Processing Unit Protection Power Shielding Weapon Grenade Launcher Energy Gun EM Pulse Gun Energy Cannon Heavy Particle Cannon Ballistic Gun Assault Rifle Launcher Grenade Launcher Build | -11 -10 -9 ------- Run | Scr Mat Mat Slots Evolved 2 | . . 2 Power . | . . . Propulsion 1 | . . 1 Utility 1 | . . 1 Weapon . | . . . Parts Attached 33 | 5 9 19 Power 4 | 1 1 2 Engine 4 | 1 1 2 Core . | . . . Reactor . | . . . Propulsion 8 | 2 2 4 Treads 6 | 2 . 4 Leg 2 | . 2 . Wheel . | . . . Hover . | . . . Flight . | . . . Utility 5 | 1 2 2 Device . | . . . Storage 2 | 1 1 . Processor 2 | . 1 1 Hackware . | . . . Protection 1 | . . 1 Artifact . | . . . Weapon 16 | 1 4 11 Energy Gun 5 | . 3 2 Energy Cannon 5 | . . 5 Ballistic Gun 1 | 1 . . Ballistic Cannon . | . . . Launcher 5 | . 1 4 Special Weapon . | . . . Impact Weapon . | . . . Slashing Weapon . | . . . Piercing Weapon . | . . . Special Melee Weapon . | . . . Unidentified Prototypes . | . . . Parts Lost 6 | . 2 4 Power . | . . . Propulsion . | . . . Utility . | . . . Weapon 6 | . 2 4 Highest Loss Streak 3 | . 1 3 Average Slot Usage (%) 94 | . 96 90 Engine 12 | . 14 11 Treads 15 | . 10 23 Leg 12 | . 16 6 Storage 12 | . 14 11 Processor 11 | . 11 13 Protection 1 | . . 4 Energy Gun 13 | . 18 5 Energy Cannon 3 | . . 8 Ballistic Gun 2 | . 4 . Launcher 5 | . 4 6 Naked Turns . | . . . Heaviest Build 34 | 9 24 34 Greatest Support 66 | 40 40 66 Greatest Overweight (x) 1 | . 1 1 Average Overweight (x) . | . . . Largest Inventory Capacity 10 | 6 10 10 Average Capacity 8 | 4 8 10 Most Carried 10 | 4 10 10 Average Carried 6 | 1 6 7 Final Capacity 10 | 6 10 10 Final Carried 9 | 4 9 5 Class Distribution -------------------- 100% | Mutant Dominant Class ---------------- Mutant | -10/Materials Mutant | -9/Materials Resources | -11 -10 -9 ----------- Run | Scr Mat Mat Matter Collected 606 | 256 161 189 Remotely . | . . . Salvage Created 942 | 58 446 438 Parts 81 | 3 42 36 Haulers Intercepted 1 | . . 1 Recyclers Shooed 2 | . 1 1 Parts Field Recycled . | . . . Retrieved Matter . | . . . Parts Self-Destructed . | . . . Prevented . | . . . Kills | -11 -10 -9 ------- Run | Scr Mat Mat Combat Hostiles Destroyed 26 | . 12 14 Guns 9 | . 9 . Cannons 4 | . . 4 AOE 13 | . 3 10 Classes Destroyed 8 | 1 4 3 Worker 3 | . 2 1 Builder 3 | . 1 2 Hauler 1 | . . 1 Recycler 4 | 1 2 1 Watcher 6 | . 3 3 Swarmer 20 | . 12 8 Grunt 3 | . . 3 Sentry 3 | . . 3 Best Kill Streak 6 | 1 4 6 Combat Bots Only 4 | . 3 4 Max Kills in Single Turn 4 | 1 2 4 Gunslinging 1 | . 1 . Exploded 3 | . 2 3 Melee . | . . . Uniques/NPCs Destroyed . | . . . Combat | -11 -10 -9 -------- Run | Scr Mat Mat Damage Taken 1787 | . 586 1201 Core 500 | . 94 406 Absorbed by Shields . | . . . Core Remaining (%) 81 | 100 62 . Volleys Fired 94 | 2 46 46 Largest 2 | 1 2 2 Hottest 150 | 20 80 150 Shots Fired 148 | 2 87 59 Gun 111 | 2 86 23 Cannon 21 | . . 21 Launcher 16 | . 1 15 Special . | . . . Kinetic 24 | 2 22 . Thermal 65 | . 21 44 Explosive 16 | . 1 15 Electromagnetic 43 | . 43 . Robot Hit Streak 6 | 1 6 4 Robot Miss Streak 7 | 1 7 4 Penetration Max . | . . . Secondary Targets 4 | . 4 . Max Gunslinging Chain 1 | . 1 . Shots Hit Robots 71 | 1 46 24 Core Hits 61 | 2 24 35 Critical Hits . | . . . Critical Kills . | . . . Critical Parts Destroyed . | . . . Melee Attacks . | . . . Impact . | . . . Slashing . | . . . Piercing . | . . . Sneak Attacks . | . . . Combat Hostiles . | . . . Follow-up Attacks . | . . . Damage Inflicted 2159 | 25 726 1408 Guns 684 | 25 534 125 Cannons 300 | . . 300 Explosions 1175 | . 192 983 Melee . | . . . Ramming . | . . . Kinetic 172 | 25 147 . Thermal 669 | . 244 425 Explosive 1064 | . 81 983 Electromagnetic 254 | . 254 . Impact . | . . . Slashing . | . . . Piercing . | . . . Highest Corruption 3 | . 2 3 Average Corruption 2 | . 2 3 Corruption Purged . | . . . Effects 4 | . 1 3 Message Errors 1 | . 1 . Heat Flow Errors 1 | . . 1 Energy Discharges 1 | . . 1 Targeting Errors 1 | . . 1 Overload Shots . | . . . Overflow Damage 55 | . 39 16 Projectiles 10 | . . 10 Explosions 45 | . 39 6 Melee . | . . . Knockbacks . | . . . Impact . | . . . Kinetic . | . . . Secondary . | . . . Self-Inflicted Damage 50 | . 19 31 Shots 3 | . 1 2 Rammed . | . . . Targets Rammed . | . . . Kicked . | . . . Crushed . | . . . Highest Temperature 791 | . 126 791 Average Temperature 172 | . 38 254 Received Heat Transfer 249 | . . 249 Effects 25 | . . 25 Shutdowns 4 | . . 4 Energy Bleed 1 | . . 1 Interference 2 | . . 2 Matter Decay 1 | . . 1 Short Circuit 2 | . . 2 Damage (minor) 1 | . . 1 Damage (major) 10 | . . 10 Damage (core) 4 | . . 4 Siege Activations . | . . . Robots Corrupted . | . . . Combat Hostiles . | . . . Parts Fried 1 | . 1 . Impact Corruptions . | . . . Robots Melted . | . . . Combat Hostiles . | . . . Parts Melted . | . . . Heat Transferred 1388 | . 574 814 Parts Sabotaged . | . . . Parts Stolen . | . . . Parts Stripped . | . . . Power Chain Reactions 3 | . 3 . Missiles Intercepted . | . . . Alert | -11 -10 -9 ------- Run | Scr Mat Mat Peak Influence 416 | 5 260 416 Average Influence 144 | 3 150 165 Maximum Alert Level 2 | . 1 2 Low Security (%) 68 | 100 69 61 Level 1 30 | . 30 38 Level 2 . | . . . Level 3 . | . . . Level 4 . | . . . Level 5 . | . . . High Security . | . . . Max Security . | . . . Squads Dispatched 1 | . . 1 Investigation . | . . . Extermination . | . . . Reinforcement 1 | . . 1 Assault . | . . . Garrison . | . . . Intercept . | . . . Construction Impeded 1 | . . 1 Haulers Reinforced . | . . . Stealth | -11 -10 -9 --------- Run | Scr Mat Mat Distress Signals 3 | . 1 2 Communications Jammed . | . . . Distress Signals . | . . . Times Spotted 43 | . 19 24 Peak Tracking Total 6 | . 4 6 Tactical Retreats 2 | . . 2 Traps | -11 -10 -9 ------- Run | Scr Mat Mat Traps Triggered 2 | . 2 . Indirectly . | . . . Trap Hack Attempts . | . . . Triggered . | . . . Disarmed . | . . . Reprogrammed . | . . . Reused . | . . . Traps Extracted . | . . . Installed . | . . . Triggered . | . . . Machines | -11 -10 -9 ---------- Run | Scr Mat Mat Machines Disabled 2 | . . 2 Max in Single Turn 1 | . . 1 Machines Sabotaged . | . . . Garrisons Compromised . | . . . Overloaded Fab Kills . | . . . Fab Network Shutdowns . | . . . Hacking | -11 -10 -9 --------- Run | Scr Mat Mat Machines Accessed . | . . . Terminals . | . . . Fabricators . | . . . Repair Stations . | . . . Recycling Units . | . . . Scanalyzers . | . . . Garrison Access . | . . . Total Hacks . | . . . Successful . | . . . Failed . | . . . Catastrophic . | . . . Database Lockouts . | . . . Manual . | . . . Terminals . | . . . Fabricators . | . . . Repair Stations . | . . . Recycling Units . | . . . Scanalyzers . | . . . Garrison Access . | . . . Terminal Hacks . | . . . Fabricator Hacks . | . . . Repair Station Hacks . | . . . Recycling Unit Hacks . | . . . Scanalyzer . | . . . Garrison Access Hacks . | . . . Unauthorized Hacks . | . . . Terminals . | . . . Fabricators . | . . . Repair Stations . | . . . Recycling Units . | . . . Scanalyzers . | . . . Garrison Access . | . . . Data Cores Recovered . | . . . Used . | . . . Hacking Detections . | . . . Full Trace Events . | . . . Feedback Events . | . . . Feedback Blocked . | . . . Robot Schematics Acquired . | . . . Robots Built . | . . . Matter . | . . . Time . | . . . Total Robot Build Rating . | . . . Part Schematics Acquired . | . . . Parts Built . | . . . Matter . | . . . Time . | . . . Total Part Build Rating . | . . . Parts Repaired . | . . . Time . | . . . Parts Recycled . | . . . Recycled Matter . | . . . Retrieved Matter . | . . . Retrieved Components . | . . . Parts Scanalyzed . | . . . Part Schematics Acquired . | . . . Parts Damaged . | . . . Bothacking | -11 -10 -9 ------------ Run | Scr Mat Mat Used RIF Installer . | . . . Robots Hacked . | . . . Non-combat . | . . . Combat . | . . . Robot Hacks Applied . | . . . Relay Couplers Released . | . . . Robots Rewired . | . . . Allies Hacked . | . . . Hacks Repelled . | . . . Allies | -11 -10 -9 -------- Run | Scr Mat Mat Total Allies . | . . . Largest Group . | . . . Highest-Rated Group . | . . . Highest-Rated Ally . | . . . Total Orders . | . . . Ally Attacks . | . . . Total Damage . | . . . Kills . | . . . Allies Corrupted . | . . . Allies Melted . | . . . Intel | -11 -10 -9 ------- Run | Scr Mat Mat Robot Analysis Total . | . . . Derelict Logs Recovered . | . . . Drone Launches . | . . . Drone Recoveries . | . . . Exploration | -11 -10 -9 ------------- Run | Scr Mat Mat Turns Passed 1609 | 116 951 542 Spaces Moved 860 | 71 517 272 Core 11 | 11 . . Treads 416 | 60 178 178 Legs 433 | . 339 94 Wheels . | . . . Hover . | . . . Flight . | . . . Fastest Speed 50 | 50 120 145 Average Speed 148 | 142 150 146 Slowest Speed 165 | 160 160 165 Overloaded Moves . | . . . Propulsion Burnouts . | . . . Robots Hopped . | . . . Cave-ins Triggered 1 | . . 1 Exploration Rate (%) 34 | 5 65 33 Regions Visited 2 Branch Regions . Pre-discovered Areas . | . . . Known Exits Taken . | . . . Unknown Exits Taken 2 | 1 1 . Scrap Searched . | . . . Spaces Dug . | . . . Terrain Destroyed 119 | . 11 108 Melee . | . . . Projectile 9 | . . 9 AOE 110 | . 11 99 Actions | -11 -10 -9 --------- Run | Scr Mat Mat Total 1039 | 82 602 355 Wait 17 | . 17 . Move 858 | 70 516 272 Hop . | . . . Pick Up 22 | 5 9 8 Fast Attach 7 | 4 . 3 Attach 11 | 1 6 4 Detach 2 | . 2 . Swap 15 | . 3 12 Drop 13 | . 3 10 Fire 94 | 2 46 46 Melee . | . . . Ram . | . . . Kick . | . . . Crush . | . . . Escape Stasis . | . . . Rewire . | . . . Trap . | . . . Miscellaneous . | . . . Route ------- -11/Scrapyard -10/Materials (discovered 2 exits: [*Mat x2]) -9/Materials (discovered 1 exit: [*Mat]) History --------- Turn | Location | Event 81 | -11/Scrapyard | Discovered new exit (range 16) 117 | -11/Scrapyard | Entered Materials 329 | -10/Materials | Build established: Mutant 396 | -10/Materials | Discovered new exit (range 18) 701 | -10/Materials | Discovered new exit (range 17) 1068 | -10/Materials | Entered another Materials area 1068 | -9/Materials | Evolved 2 slots: Propulsion x1, Utility x1 1277 | -9/Materials | Discovered new exit (range 14) 1483 | -9/Materials | Crushed by falling debris 1595 | -9/Materials | Core integrity fell below 50% 1610 | -9/Materials | Core integrity fell below 20% 1610 | -9/Materials | Destroyed by G-47 Trooper with Particle Gun Last Messages --------------- 01596_ Power failure, Lgt. Deuterium Engine shutdown. 01596_ G-47 Trooper destroyed. 01598_ Overheating: Core damaged (-72). 01599_ K-01 Serf collects debris. 01600_ Hvy. Particle Cannon destroyed. 01601_ Overheating: Visual Processing Unit damaged (-15). 01601_ Overheating: Power Shielding damaged (-9). 01601_ Overheating: Lrg. Storage Unit damaged (-158). 01602_ U-05 Engineer builds a Wall. 01606_ Overheating: Med. Laser damaged (-16). 01607_ Overheating: Short circuit. 01607_ Med. Laser permanently disabled. 01608_ Overheating: Adv. Treads damaged (-10). 01608_ Overheating: Adv. Treads damaged (-56). 01608_ Overheating: Adv. Treads damaged (-11). 01608_ Med. Laser destroyed. 01609_ Power failure, Lgt. Deuterium Engine shutdown. 01609_ Overheating: Matter decay (-32). 01610_ Overheating: Core damaged (-80). 01610_ U-05 Engineer lays Concrete. Map ----- +----------------------------------------------------+ | ?????????????????????????????# #??# | | ?????????????????????????????# #??# | | ?????????????????????????????# #??# ###+### | | ?????????????????????????????# #??######## ## | | ?????????????????????????????# ########### ## | | ?????????????????????????????# + ## | | ?????????????????????????????# # ## | | ?????????????????????????????# # ## | | ???????????????????????? + ## | | ?????????????????????# ################# ## | | ??????????????????????? ?????????????????# ## | | ?????????????????????# ????????????????# ## | | ?????????????????????# ????????????????####### | | ?????????????????????# ??????????????????##!! | | ?????????????????????# ??????????????????#! " | | ?????????????????????# #?????????????????#! "% | | ?????????????????????+ /??????????########! | | ?????????????????????# #??????????# #! | | ?????????????????????# +????????### ""!! | | ?????????????????????# #????????# """""""""### * | | ?????????????????????# #????????# # | | ?????????????????????# #????????#[[ | | ?????????????????????# #####????#[! = | | ?????????????????????# !!#????#[! | | ?????????????????????# !!#????# = | | ?????????????????????# @ !!#????###""#/### ! | | ????????????????????# ! #?????## ##### | | ????????????????????# ! #??????# [%[* = | | ?????????#####+###### %g %=!! #??????# [ | | ?????? %*=ug u u ######### | | ?????? = u!**! u ####### | | ?????? "% [ ############## ##?????# | | ????????######/######## ##????????????# ^#??????? | | ?????????????????????? ??????????????# #??????? | | ?????????????????????? ??????????????# #??????? | | ?????????????????????? [??????????????# #??????? | | ????????????????????? ??????????????# +??????? | | ????????????????????? ]???????????????# #??????? | | ????????????????????? ???????????????# #??????? | | ????????????????????? ???????????????# #??????? | | ??????????????????????????????????????# #??????? | | ??????????????????????????????????????# +??????? | | ??????????????????????????????????????# #??????? | | ??????????????????????????????????????# #??????? | | ??????????????????????????????????????# #??????? | | ??????????????????????????????????????? ???????? | | ??????????????????????????????????????? ???????? | | ?????????????????????????????????????????????????? | | ?????????????????????????????????????????????????? | | ?????????????????????????????????????????????????? | +----------------------------------------------------+ Best States ------------- Heat Dissipation 28 Energy Generation 14 Energy Capacity 140 Matter Stores 300 Matter Capacity 300 Sight Range 18 Terrain Scan Density 85 Power Shielding 33 Evasion (%) 40 Recoil Reduction 3 Item Schematics ----------------- None Robot Schematics ------------------ None Fabricated ------------ Nothing Alien Tech Used ----------------- None Achievements -------------- None Challenges ------------ None Game ------ Seed NetworkSystemProcessor Manual? 0 Play Time 00:16:43 Cumulative 14.1 hours Start 2019.11.12 @ 20:57:57 End 2019.11.12 @ 21:17:22 Sessions 1 Manual Loads 0 Difficulty Rogue Special Mode None Game No. 39 Rogue 39 Adventurer 0 Explorer 0 Win Type - Total 0 Types 0/0/0/0/0/0/0 Lore% 7 Gallery% 18 Achievement% 12 Wizard Run 0 Options --------- ASCII 0 Keyboard 1 Movement Numpad Keybinds 0 Fullscreen 1 Font 18/SmallcapsGlow Map View 76x50 Tactical HUD 1 Map Filters NONE Filters NONE Steam 1 RUN: 559fbc23-761a-4100-8106-f036f7c897e1